bitfinex/quotes_BTCUSD_20250308
["timestamp","ask_amount","ask_price","bid_price","bid_amount"]
[1741444619860,0.0116918,86784.0,86779.0,0.01289446]
[1741444620511,0.011522,86783.0,86779.0,0.01289446]
[1741444620875,0.011523,86782.0,86779.0,0.01289446]
[1741444621070,0.230486,86773.0,86770.0,0.1154996]
[1741444621273,0.242015,86771.0,86770.0,0.1154996]
[1741444621477,0.242015,86771.0,86770.0,0.0003396]
[1741444622093,0.24213052,86771.0,86770.0,0.0003396]
[1741444622555,0.242027,86767.0,86766.0,0.13022077]
[1741444622828,0.242027,86767.0,86748.0,0.312352]
[1741444622829,0.011526,86753.0,86748.0,0.312352]
[1741444623004,0.011526,86753.0,86746.0,0.208587]
[1741444623005,0.011527,86749.0,86746.0,0.14796]
[1741444623388,0.0257243,86749.0,86746.0,0.14796]
[1741444623633,0.011527,86750.0,86746.0,0.14796]
[1741444623839,0.230542,86752.0,86746.0,0.14796]
[1741444623986,0.242066,86753.0,86746.0,0.14796]
[1741444624323,0.242066,86753.0,86746.0,0.159487]
[1741444624501,0.25577367,86753.0,86746.0,0.159487]
[1741444625187,0.01370767,86753.0,86746.0,0.159487]
[1741444625368,0.011526,86756.0,86746.0,0.159487]
[1741444625744,0.23054,86753.0,86746.0,0.159487]
[1741444625964,0.242066,86753.0,86746.0,0.164487]
[1741444626320,0.242066,86753.0,86746.0,0.162487]
[1741444626549,0.242066,86753.0,86746.0,0.159487]
[1741444626751,0.242066,86753.0,86746.0,0.164487]
[1741444627023,0.242066,86753.0,86746.0,0.165487]
[1741444627218,0.242066,86753.0,86747.0,0.01045693]
[1741444628126,0.011527,86752.0,86747.0,0.01045693]
[1741444628366,0.011527,86750.0,86747.0,0.01045693]
[1741444629569,0.011527,86752.0,86747.0,0.01045693]
[1741444629976,0.011527,86752.0,86747.0,0.01545693]
[1741444630382,0.011527,86752.0,86747.0,0.24101093]
[1741444630576,0.011527,86752.0,86747.0,0.01045693]
[1741444630778,0.011527,86752.0,86747.0,0.24801193]
[1741444630986,0.011527,86752.0,86747.0,0.24501193]
[1741444631228,0.01373554,86753.0,86747.0,0.25653893]
[1741444631428,0.011526,86754.0,86748.0,0.011527]
[1741444631612,0.24205,86759.0,86748.0,0.02201423]
[1741444631855,0.01376656,86755.0,86754.0,0.011526]
[1741444632066,0.01376656,86755.0,86748.0,0.33106423]
[1741444632067,0.3,86760.0,86748.0,0.08898723]
[1741444632246,0.3,86760.0,86747.0,0.006]
[1741444632247,0.242079,86748.0,86747.0,0.002]
[1741444632696,0.242079,86748.0,86747.0,0.005]
[1741444632898,0.242079,86748.0,86747.0,0.003]
[1741444633101,0.242094,86743.0,86737.0,0.0003398]
[1741444633305,0.011527,86746.0,86739.0,0.011528]
[1741444633509,0.011528,86744.0,86739.0,0.011528]
[1741444633715,0.011527,86746.0,86740.0,0.011528]
[1741444634338,0.011527,86746.0,86742.0,0.00072508]
[1741444634697,0.242088,86745.0,86742.0,0.00072508]
[1741444635991,0.242088,86745.0,86742.0,0.00572508]
[1741444636190,0.011528,86743.0,86742.0,0.00872508]
[1741444636588,0.011528,86743.0,86742.0,0.00572508]
[1741444636789,0.011528,86743.0,86742.0,0.00372508]
[1741444636983,0.011528,86743.0,86742.0,0.00872508]
[1741444637264,0.011528,86743.0,86742.0,0.00572508]
[1741444637413,0.011528,86743.0,86742.0,0.00872508]
[1741444637592,0.011528,86743.0,86742.0,0.00372508]
[1741444638873,0.242088,86745.0,86742.0,0.00372508]
[1741444639119,0.230555,86747.0,86742.0,0.00872508]
[1741444639269,0.242082,86747.0,86743.0,0.00948473]
[1741444640658,0.011528,86744.0,86743.0,0.01248473]
[1741444641084,0.011528,86744.0,86743.0,0.003]
[1741444642173,0.011528,86744.0,86743.0,0.008]
[1741444642578,0.011528,86744.0,86743.0,0.003]
[1741444642931,0.242082,86747.0,86742.0,0.00072508]
[1741444643081,0.011527,86747.0,86743.0,0.008]
[1741444643283,0.311527,86752.0,86743.0,0.02901443]
[1741444643485,0.011527,86749.0,86744.0,0.230563]
[1741444643687,0.242078,86749.0,86744.0,0.230563]
[1741444643851,0.242078,86749.0,86745.0,0.00950527]
[1741444644066,0.242082,86747.0,86742.0,0.08432508]
[1741444644285,0.242082,86747.0,86746.0,0.00950527]
[1741444644489,0.011527,86748.0,86742.0,0.32342008]
[1741444644694,0.011527,86750.0,86746.0,0.00950527]
[1741444644898,0.242077,86749.0,86744.0,0.011528]
[1741444645106,0.242071,86751.0,86747.0,0.00950527]
[1741444645350,0.011527,86750.0,86745.0,0.23056]
[1741444645756,0.3,86752.0,86749.0,0.011527]
[1741444645976,0.58309012,86758.0,86757.0,0.011526]
[1741444646403,0.58309012,86758.0,86753.0,0.242065]
[1741444646404,0.3,86757.0,86753.0,0.242065]
[1741444646858,0.3,86757.0,86754.0,0.011526]
[1741444648163,0.3,86757.0,86754.0,0.003]
[1741444648374,0.530529,86757.0,86754.0,0.003]
[1741444648942,0.530529,86757.0,86754.0,0.007]
[1741444649297,0.3,86757.0,86754.0,0.007]
[1741444649500,0.3,86757.0,86755.0,0.011526]
[1741444650213,0.28309012,86758.0,86756.0,0.011526]
[1741444651020,0.3,86761.0,86756.0,0.011526]
[1741444652024,0.3,86761.0,86757.0,0.230528]
[1741444652559,0.32531804,86762.0,86757.0,0.242054]
[1741444652942,0.31379304,86762.0,86757.0,0.242054]
[1741444653145,0.31379304,86762.0,86757.0,0.245054]
[1741444653467,0.31379304,86762.0,86758.0,0.011526]
[1741444654002,0.31379304,86762.0,86757.0,0.245054]
[1741444654003,0.32531804,86762.0,86757.0,0.245054]
[1741444655558,0.32531804,86762.0,86758.0,0.004]
[1741444655977,0.32531804,86762.0,86758.0,0.003]
[1741444656465,0.542049,86759.0,86758.0,0.003]
[1741444656899,0.3,86758.0,86753.0,0.230539]
[1741444657080,0.3,86758.0,86753.0,0.242065]
[1741444657611,0.3,86758.0,86757.0,0.003]
[1741444657850,0.3,86760.0,86757.0,0.003]
[1741444658481,0.3,86760.0,86758.0,0.005]
[1741444658904,0.230523,86759.0,86758.0,0.005]
[1741444659107,0.011526,86753.0,86748.0,0.242079]
[1741444659360,0.011526,86756.0,86750.0,0.306146]
[1741444659509,0.230526,86758.0,86752.0,0.242069]
[1741444659722,0.242052,86758.0,86752.0,0.242069]
[1741444659927,0.011526,86756.0,86753.0,0.0003398]
[1741444660121,0.3,86757.0,86754.0,0.0455]
[1741444660321,0.3,86757.0,86756.0,0.0788]
[1741444660997,0.01396294,86762.0,86756.0,0.090326]
[1741444661245,0.01396294,86762.0,86758.0,0.011526]
[1741444661902,0.01396294,86762.0,86759.0,0.011526]
[1741444662082,0.01396294,86762.0,86756.0,0.0788]
[1741444662377,0.3,86760.0,86756.0,0.0788]
[1741444662558,0.3,86760.0,86758.0,0.004]
[1741444662886,0.3,86760.0,86758.0,0.007]
[1741444663146,0.3,86760.0,86758.0,0.003]
[1741444663596,0.01396294,86762.0,86756.0,0.324856]
[1741444663844,0.31396294,86762.0,86756.0,0.324856]
[1741444664034,0.31396294,86762.0,86756.0,0.327856]
[1741444664680,0.31396294,86762.0,86756.0,0.323856]
[1741444664888,0.311526,86760.0,86756.0,0.0818]
[1741444665100,0.311526,86760.0,86758.0,0.005]
[1741444665307,0.3,86760.0,86758.0,0.005]
[1741444665487,0.3,86760.0,86756.0,0.320856]
[1741444665664,0.3,86760.0,86757.0,0.011526]
[1741444665863,0.32548794,86762.0,86758.0,0.003]
[1741444666289,0.31396294,86762.0,86758.0,0.233525]
[1741444666722,0.31396294,86762.0,86758.0,0.235525]
[1741444666962,0.542049,86759.0,86758.0,0.005]
[1741444667925,0.242062,86754.0,86751.0,0.0788]
[1741444669327,0.242062,86754.0,86753.0,0.0033398]
[1741444669796,0.242062,86754.0,86753.0,0.0083398]
[1741444674621,0.011526,86754.0,86753.0,0.0083398]
[1741444677004,0.0001699,86759.0,86754.0,0.230536]
[1741444677264,0.0001699,86759.0,86758.0,0.078]
[1741444677963,0.0001699,86759.0,86758.0,0.08652993]
[1741444678983,0.0001699,86759.0,86758.0,0.09152993]
[1741444679159,0.0001699,86759.0,86758.0,0.09452993]
[1741444680422,0.2306929,86759.0,86758.0,0.09452993]
[1741444680767,0.2422189,86759.0,86758.0,0.09452993]
[1741444682678,0.5422189,86759.0,86758.0,0.01652993]
[1741444683063,0.5422189,86759.0,86758.0,0.008]
[1741444683703,0.5422189,86759.0,86742.0,0.00072508]
[1741444683704,0.242094,86743.0,86742.0,0.00072508]
[1741444684908,0.011528,86743.0,86742.0,0.00072508]
[1741444685546,0.011528,86743.0,86742.0,0.00872508]
[1741444685750,0.011528,86743.0,86742.0,0.00572508]
[1741444685931,0.011528,86743.0,86742.0,0.00072508]
[1741444686130,0.011528,86743.0,86742.0,0.00372508]
[1741444686345,0.011528,86743.0,86742.0,0.00572508]
[1741444687722,0.011528,86743.0,86742.0,0.00872508]
[1741444694998,0.011528,86743.0,86742.0,0.01726121]
[1741444695250,0.011528,86745.0,86742.0,0.01726121]
[1741444695455,0.3,86751.0,86742.0,0.02878921]
[1741444695655,0.011526,86755.0,86748.0,0.0823]
[1741444696108,0.011526,86755.0,86749.0,0.00855243]
[1741444696309,0.011526,86755.0,86748.0,0.0823]
[1741444696721,0.3,86756.0,86754.0,0.230536]
[1741444696827,0.28309012,86758.0,86754.0,0.230536]
[1741444696828,0.28309012,86758.0,86755.0,0.0761]
[1741444697047,0.28309012,86758.0,86756.0,0.011526]
[1741444697274,0.28309012,86758.0,86755.0,0.0761]
[1741444697475,0.28309012,86758.0,86757.0,0.00855243]
[1741444697762,0.28309012,86758.0,86755.0,0.0761]
[1741444697968,0.28309012,86758.0,86757.0,0.00855243]
[1741444698094,0.28309012,86758.0,86755.0,0.0761]
[1741444698643,0.0116959,86759.0,86757.0,0.003]
[1741444698982,0.0116959,86759.0,86757.0,0.004]
[1741444699185,0.0116959,86759.0,86758.0,0.00855243]
[1741444699585,0.0116959,86759.0,86755.0,0.0761]
[1741444699816,0.0116959,86759.0,86756.0,0.00855243]
[1741444700026,0.0116959,86759.0,86757.0,0.0488]
[1741444700433,0.0116959,86759.0,86758.0,0.00855243]
[1741444700810,0.0001699,86759.0,86758.0,0.00855243]
[1741444701461,0.0001699,86759.0,86758.0,0.01255243]
[1741444701676,0.0001699,86759.0,86758.0,0.01455243]
[1741444702728,0.0116959,86759.0,86758.0,0.01455243]
[1741444703599,0.2422189,86759.0,86758.0,0.01455243]
[1741444703808,0.2372189,86759.0,86758.0,0.006]
[1741444705142,0.0066959,86759.0,86758.0,0.006]
[1741444705600,0.0066959,86759.0,86758.0,0.01455243]
[1741444706514,0.2372189,86759.0,86758.0,0.01455243]
[1741444707479,0.2373889,86759.0,86758.0,0.01455243]
[1741444708309,0.2373889,86759.0,86758.0,0.006]
[1741444708522,0.2373889,86759.0,86758.0,0.01453435]
[1741444708739,0.2373889,86759.0,86758.0,0.006]
[1741444708905,0.2373889,86759.0,86758.0,0.01453435]
[1741444709975,0.2373889,86759.0,86758.0,0.006]
[1741444712491,0.2373889,86759.0,86758.0,0.002]
[1741444712734,0.011526,86753.0,86749.0,0.0805]
[1741444713092,0.011526,86753.0,86750.0,0.00851712]
[1741444713266,0.20131954,86758.0,86749.0,0.0805]
[1741444713893,0.011526,86753.0,86749.0,0.0805]
[1741444715198,0.011526,86753.0,86749.0,0.0835]
[1741444715583,0.011526,86753.0,86750.0,0.00852077]
[1741444716381,0.3524299,86759.0,86750.0,0.02004777]
[1741444716517,0.011526,86755.0,86750.0,0.00852077]
[1741444718215,0.011526,86756.0,86750.0,0.02004777]
[1741444718611,0.011526,86756.0,86750.0,0.02304777]
[1741444719012,0.011526,86756.0,86750.0,0.02004777]
[1741444719958,0.011526,86757.0,86751.0,0.242071]
[1741444720302,0.1219059,86759.0,86753.0,0.242063]
[1741444720505,0.11521,86759.0,86753.0,0.242063]
[1741444720927,0.11521,86759.0,86754.0,0.00852442]
[1741444721555,0.126736,86759.0,86754.0,0.00852442]
[1741444721784,0.011526,86755.0,86754.0,0.00852442]
[1741444722011,0.242052,86758.0,86754.0,0.00852442]
[1741444722212,0.011526,86756.0,86754.0,0.00852442]
[1741444722692,0.011526,86758.0,86754.0,0.004]
[1741444722899,0.011526,86756.0,86755.0,0.00852442]
[1741444723703,0.011526,86756.0,86754.0,0.003]
[1741444723704,0.011526,86755.0,86754.0,0.005]
[1741444724058,0.011526,86755.0,86754.0,0.01352442]
[1741444724265,0.011526,86756.0,86754.0,0.01352442]
[1741444724717,0.011526,86758.0,86754.0,0.01352442]
[1741444725074,0.011526,86758.0,86754.0,0.01152442]
[1741444725336,0.011526,86758.0,86755.0,0.002]
[1741444725620,0.011526,86758.0,86754.0,0.00852442]
[1741444725830,0.011526,86758.0,86752.0,0.242067]
[1741444725970,0.011526,86758.0,86756.0,0.00852442]
[1741444726185,0.011526,86758.0,86754.0,0.004]
[1741444726365,0.011526,86758.0,86757.0,0.00852442]
[1741444726570,0.011526,86758.0,86752.0,0.242067]
[1741444726975,0.011526,86758.0,86755.0,0.002]
[1741444727657,0.011526,86758.0,86756.0,0.00852442]
[1741444728732,0.0830731,86761.0,86757.0,0.002]
[1741444728927,0.0830731,86761.0,86757.0,0.00852442]
[1741444729133,0.0830731,86761.0,86756.0,0.002]
[1741444729359,0.011526,86759.0,86758.0,0.00852442]
[1741444729565,0.011526,86759.0,86756.0,0.002]
[1741444729761,0.011526,86759.0,86758.0,0.00852442]
[1741444730322,0.011526,86759.0,86756.0,0.001]
[1741444730531,0.011526,86759.0,86758.0,0.00852442]
[1741444730736,0.011526,86759.0,86756.0,0.001]
[1741444730956,0.011526,86759.0,86758.0,0.00852442]
[1741444731158,0.011526,86759.0,86756.0,0.001]
[1741444731392,0.011526,86760.0,86758.0,0.00852442]
[1741444731600,0.011526,86760.0,86754.0,0.242062]
[1741444731752,0.011526,86760.0,86759.0,0.00852442]
[1741444731959,0.011526,86760.0,86758.0,0.003]
[1741444732184,0.011526,86760.0,86759.0,0.00852442]
[1741444733162,0.011526,86760.0,86758.0,0.003]
[1741444733548,0.0116959,86760.0,86759.0,0.00852442]
[1741444733911,0.011526,86759.0,86756.0,0.0033398]
[1741444734257,0.011526,86759.0,86757.0,0.00852442]
[1741444734692,0.011526,86758.0,86756.0,0.0003398]
[1741444735014,0.011526,86757.0,86756.0,0.0003398]
[1741444736130,0.011526,86757.0,86756.0,0.0023398]
[1741444736895,0.0001699,86760.0,86757.0,0.0812]
[1741444737270,0.0001699,86760.0,86758.0,0.00852442]
[1741444737632,0.011526,86759.0,86758.0,0.00852442]
[1741444737864,0.011526,86758.0,86757.0,0.0812]
[1741444738358,0.011526,86757.0,86756.0,0.0023398]
[1741444739259,0.011526,86757.0,86756.0,0.01311548]
[1741444740266,0.011526,86757.0,86756.0,0.01511548]
[1741444742937,0.011526,86757.0,86756.0,0.01811548]
[1741444747583,0.0001699,86760.0,86756.0,0.01811548]
[1741444747784,0.011526,86758.0,86756.0,0.01811548]
[1741444748307,0.0116959,86760.0,86756.0,0.01811548]
[1741444749000,0.311526,86757.0,86756.0,0.0053398]
[1741444749808,0.311526,86757.0,86747.0,0.0812]
[1741444749809,0.0124004,86749.0,86747.0,0.0812]
[1741444749958,0.242079,86748.0,86742.0,0.19688508]
[1741444750119,0.011527,86747.0,86742.0,0.19688508]
[1741444750313,0.011527,86747.0,86742.0,0.08192508]
[1741444751585,0.011527,86747.0,86746.0,0.00334]
[1741444752621,0.011527,86747.0,86746.0,0.00034]
[1741444753271,0.011527,86747.0,86746.0,0.00434]
[1741444753808,0.011527,86747.0,86746.0,0.00034]
[1741444754006,0.011527,86747.0,86746.0,0.00234]
[1741444754210,0.011527,86747.0,86746.0,0.00534]
[1741444754412,0.311527,86747.0,86746.0,0.00334]
[1741444754660,0.311527,86747.0,86746.0,0.00534]
[1741444755460,0.311527,86747.0,86746.0,0.00334]
[1741444755832,0.312527,86747.0,86746.0,0.00334]
[1741444757636,0.001,86747.0,86746.0,0.00334]
[1741444757842,0.011527,86747.0,86746.0,0.00334]
[1741444758052,0.30320873,86747.0,86746.0,0.00334]
[1741444758259,0.30210873,86747.0,86746.0,0.00034]
[1741444758459,0.30410873,86747.0,86746.0,0.00034]
[1741444758697,0.30210873,86747.0,86746.0,0.00134]
[1741444758900,0.30310873,86747.0,86746.0,0.00134]
[1741444759107,0.30310873,86747.0,86746.0,0.00034]
[1741444759516,0.30510873,86747.0,86746.0,0.00034]
[1741444759718,0.30527863,86747.0,86746.0,0.00034]
[1741444759971,0.357039,86748.0,86747.0,3.69472137]
[1741444760402,0.357039,86748.0,86747.0,3.70437748]
[1741444761505,0.357039,86748.0,86747.0,3.70337748]
[1741444762062,0.359039,86748.0,86747.0,3.70337748]
[1741444762470,0.359039,86748.0,86747.0,3.70237748]
[1741444763891,0.660039,86748.0,86747.0,3.70237748]
[1741444765660,0.659789,86748.0,86747.0,3.70237748]
[1741444766206,0.659789,86748.0,86747.0,3.70113744]
[1741444767695,0.003,86748.0,86747.0,4.01399244]
[1741444767938,0.003,86748.0,86747.0,4.02551944]
[1741444768575,0.003,86748.0,86747.0,4.07131944]
[1741444768995,0.001,86748.0,86747.0,4.07131944]
[1741444769215,0.0001699,86760.0,86756.0,0.242056]
[1741444769414,0.0001699,86760.0,86759.0,0.0823]
[1741444770066,0.0001699,86760.0,86759.0,0.09195667]
[1741444771892,0.0116959,86760.0,86759.0,0.09195667]
[1741444772129,0.0116959,86760.0,86759.0,0.09495667]
[1741444773571,0.0116959,86760.0,86759.0,0.09895667]
[1741444774224,0.0116959,86760.0,86759.0,0.09595667]
[1741444774427,0.0116959,86760.0,86759.0,0.09195667]
[1741444774601,0.0116959,86760.0,86759.0,0.09895667]
[1741444774961,0.0116959,86760.0,86759.0,0.09595667]
[1741444775387,0.0116959,86760.0,86759.0,0.09495667]
[1741444776428,0.0116959,86760.0,86759.0,0.09380065]
[1741444777318,0.0116959,86760.0,86759.0,0.09780065]
[1741444782427,0.011525,86762.0,86759.0,0.09780065]
[1741444782654,0.23052,86761.0,86759.0,0.09780065]
[1741444782947,0.011526,86760.0,86759.0,0.08814398]
[1741444784186,0.011526,86760.0,86759.0,0.09473423]
[1741444784518,0.0116959,86760.0,86759.0,0.09773423]
[1741444784724,0.0116959,86760.0,86759.0,0.09473423]
[1741444785199,0.0001699,86760.0,86759.0,0.09773423]
[1741444785420,0.0001699,86760.0,86759.0,0.32825723]
[1741444785643,0.0001699,86760.0,86759.0,0.33978323]
[1741444786035,0.0001699,86760.0,86759.0,0.33578323]
[1741444786270,0.0001699,86760.0,86759.0,0.33462722]
[1741444786702,0.0001699,86760.0,86759.0,0.33862722]
[1741444787341,0.0001699,86760.0,86759.0,0.09257822]
[1741444788160,0.0001699,86760.0,86759.0,0.09657822]
[1741444791536,0.0001699,86760.0,86759.0,0.10810422]
[1741444793322,0.0001699,86760.0,86759.0,0.09925591]
[1741444796155,0.01825001,86760.0,86759.0,0.09925591]
[1741444796291,0.0001699,86760.0,86759.0,0.08117562]
[1741444796919,0.0001699,86760.0,86759.0,0.08151542]
[1741444799843,0.01825048,86760.0,86759.0,0.08151542]
[1741444800766,0.0001699,86760.0,86759.0,0.08151542]
[1741444801174,0.0001699,86760.0,86759.0,0.06998942]
[1741444801722,0.0001699,86760.0,86759.0,0.08151542]
[1741444805212,0.0001699,86760.0,86759.0,0.06998942]
[1741444808759,0.0116959,86760.0,86759.0,0.06998942]
[1741444809356,0.02977638,86760.0,86759.0,0.06998942]
[1741444813508,0.01825038,86760.0,86759.0,0.06998942]
[1741444814365,0.01825038,86760.0,86759.0,0.31203842]
[1741444815019,0.01825038,86760.0,86759.0,0.30051242]
[1741444815218,0.01496731,86763.0,86762.0,3.90374595]
[1741444815665,0.530504,86767.0,86762.0,3.91492711]
[1741444815858,0.542029,86767.0,86762.0,3.91492711]
[1741444817042,0.542029,86767.0,86762.0,3.91792711]
[1741444817043,0.55766754,86767.0,86762.0,3.91792711]
[1741444818026,0.55766754,86767.0,86762.0,3.91492711]
[1741444818650,0.55766754,86767.0,86762.0,3.91692711]
[1741444819000,0.230507,86765.0,86762.0,3.68441211]
[1741444819334,0.011525,86766.0,86762.0,3.68541211]
[1741444819951,0.02960503,86766.0,86762.0,3.68541211]
[1741444820355,0.02960503,86766.0,86762.0,3.68441211]
[1741444820571,0.242032,86765.0,86762.0,3.68541211]
[1741444820789,0.242032,86765.0,86762.0,3.68741211]
[1741444821226,0.011525,86765.0,86762.0,3.68741211]
[1741444821730,0.011525,86765.0,86762.0,3.68541211]
[1741444821950,0.011525,86765.0,86762.0,3.68641211]
[1741444822132,0.011525,86765.0,86762.0,3.68741211]
[1741444822560,0.011525,86765.0,86762.0,3.68641211]
[1741444822896,0.011525,86765.0,86762.0,3.68741211]
[1741444823330,0.02960503,86766.0,86762.0,3.68741211]
[1741444823544,0.01808003,86766.0,86762.0,3.91792511]
[1741444823729,0.01808003,86766.0,86762.0,3.68741211]
[1741444823933,0.23051,86764.0,86762.0,3.68741211]
[1741444825010,0.242035,86764.0,86762.0,3.68641211]
[1741444825418,0.242035,86764.0,86762.0,3.68741211]
[1741444825827,0.011525,86763.0,86762.0,3.68641211]
[1741444826927,0.011525,86763.0,86762.0,3.68441211]
[1741444827081,0.011525,86763.0,86762.0,3.68741211]
[1741444827735,0.011525,86763.0,86762.0,3.68441211]
[1741444828452,0.011525,86763.0,86762.0,3.68641211]
[1741444828681,0.011525,86763.0,86762.0,3.68441211]
[1741444829116,0.011525,86763.0,86762.0,3.68641211]
[1741444829295,0.011525,86763.0,86762.0,3.76641211]
[1741444829853,0.011525,86763.0,86762.0,3.76941211]
[1741444830061,0.24858703,86766.0,86762.0,3.76941211]
[1741444830264,0.26011203,86766.0,86762.0,3.76941211]
[1741444830551,0.011525,86765.0,86762.0,3.76741211]
[1741444830760,0.242035,86764.0,86762.0,3.76741211]
[1741444830961,0.011525,86764.0,86762.0,3.76741211]
[1741444831143,0.242035,86764.0,86762.0,3.76741211]
[1741444831347,0.01808003,86766.0,86765.0,0.230507]
[1741444831550,0.01808003,86766.0,86765.0,0.323432]
[1741444831995,0.01808003,86766.0,86765.0,0.3345991]
[1741444832734,0.0001699,86767.0,86765.0,0.2531991]
[1741444832930,0.0001699,86767.0,86766.0,0.092925]
[1741444833160,0.0001699,86767.0,86766.0,0.10675865]
[1741444834221,0.011523,86778.0,86772.0,0.0814]
[1741444834432,0.011523,86778.0,86772.0,0.092924]
[1741444834875,0.011523,86778.0,86773.0,0.01383365]
[1741444835620,0.02672555,86778.0,86773.0,0.24431965]
[1741444836035,0.24197,86788.0,86783.0,0.075]
[1741444836252,0.0116918,86784.0,86783.0,0.075]
[1741444836385,0.02733547,86784.0,86783.0,0.08881928]
[1741444836595,0.0001698,86784.0,86783.0,0.08881928]
[1741444837021,0.0001698,86784.0,86783.0,0.31927828]
[1741444837371,0.0001698,86784.0,86783.0,0.08881928]
[1741444838418,0.0116918,86784.0,86783.0,0.08881928]
[1741444838620,0.2421488,86784.0,86783.0,0.08881928]
[1741444838984,0.25759346,86784.0,86783.0,0.08881928]
[1741444841596,0.25704248,86784.0,86783.0,0.01381928]
[1741444841706,0.27511984,86784.0,86777.0,0.075]
[1741444841920,0.24199,86781.0,86777.0,0.075]
[1741444842130,0.24199,86781.0,86778.0,0.01381928]
[1741444842734,0.03314084,86784.0,86779.0,0.011523]
[1741444843099,0.01506348,86784.0,86780.0,0.230467]
[1741444843240,0.01506348,86784.0,86780.0,0.25580928]
[1741444843461,0.011522,86783.0,86780.0,0.01381928]
[1741444843674,0.230454,86785.0,86780.0,0.01381928]
[1741444843914,0.011522,86784.0,86778.0,0.011523]
[1741444844308,0.011522,86784.0,86778.0,0.241995]
[1741444844519,0.011522,86784.0,86779.0,0.01381928]
[1741444844930,0.02585624,86784.0,86779.0,0.01381928]
[1741444845246,0.01433424,86784.0,86780.0,0.230467]
[1741444845448,0.0001699,86784.0,86780.0,0.24199]
[1741444845697,0.0001699,86784.0,86781.0,0.01381928]
[1741444846086,0.2306289,86784.0,86781.0,0.01381928]
[1741444846243,0.0144299,86784.0,86779.0,0.011523]
[1741444846675,0.0144299,86784.0,86780.0,0.01379476]
[1741444847532,0.0144299,86784.0,86780.0,0.24426076]
[1741444847791,0.0144299,86784.0,86780.0,0.01379476]
[1741444850487,0.0325071,86784.0,86780.0,0.01379476]
[1741444851726,0.16709824,86787.0,86786.0,3.08722785]
[1741444851971,0.011522,86787.0,86786.0,3.08722785]
[1741444852488,0.011522,86787.0,86786.0,3.10102261]
[1741444854680,0.02595951,86787.0,86786.0,3.10102261]
[1741444854880,0.011522,86787.0,86786.0,3.10102261]
[1741444855084,0.02959902,86787.0,86786.0,3.10102261]
[1741444855504,0.011522,86787.0,86786.0,3.10102261]
[1741444856705,0.242968,86789.0,86786.0,3.10102261]
[1741444856706,0.001,86789.0,86786.0,3.10102261]
[1741444856908,0.241971,86787.0,86786.0,3.10102261]
[1741444857105,0.011522,86787.0,86786.0,3.10102261]
[1741444857327,0.011522,86788.0,86786.0,3.10102261]
[1741444857662,0.231446,86789.0,86786.0,3.10102261]
[1741444857883,0.001,86789.0,86786.0,3.10102261]
[1741444858095,0.001,86789.0,86787.0,0.0784]
[1741444858308,0.001,86789.0,86787.0,0.0774]
[1741444858495,0.001,86789.0,86788.0,0.01379241]
[1741444859225,0.01536764,86789.0,86788.0,0.01379241]
[1741444859456,0.02688964,86789.0,86788.0,0.01379241]
[1741444860553,0.02788964,86789.0,86788.0,0.01379241]
[1741444861240,0.01536764,86789.0,86788.0,0.01379241]
[1741444861464,0.01636764,86789.0,86788.0,0.01379241]
[1741444862010,0.002,86789.0,86788.0,0.10371441]
[1741444862618,0.002,86789.0,86788.0,0.21839441]
[1741444863500,0.002,86789.0,86788.0,0.22039441]
[1741444863959,0.002,86789.0,86788.0,0.21839441]
[1741444864123,0.001,86789.0,86788.0,0.22039441]
[1741444864881,0.002,86789.0,86788.0,0.22039441]
[1741444865908,0.001,86789.0,86788.0,0.26889441]
[1741444866130,0.001,86789.0,86788.0,0.26689441]
[1741444866534,0.001,86789.0,86788.0,0.26989441]
[1741444866644,0.001,86789.0,86788.0,0.26689441]
[1741444867333,0.001,86789.0,86788.0,0.26989441]
[1741444869621,0.001,86789.0,86788.0,0.27389441]
[1741444870245,0.001,86789.0,86788.0,0.02079241]
[1741444870493,0.012522,86789.0,86788.0,0.01779241]
[1741444870702,0.0011698,86789.0,86788.0,0.01379241]
[1741444870913,0.0011698,86789.0,86788.0,0.1288]
[1741444871120,0.0011698,86789.0,86788.0,0.15101178]
[1741444871330,0.0011698,86789.0,86788.0,0.15201178]
[1741444871590,0.01924319,86789.0,86788.0,0.15201178]
[1741444872561,0.01924319,86789.0,86788.0,0.15101178]
[1741444872972,0.01924319,86789.0,86788.0,0.15416397]
[1741444872973,0.0011698,86789.0,86788.0,0.15416397]
[1741444873239,0.0011698,86789.0,86788.0,0.15101178]
[1741444873369,0.0011698,86789.0,86788.0,0.15301178]
[1741444873574,0.0011698,86789.0,86788.0,0.15701178]
[1741444873785,1.17469505,86794.0,86793.0,0.011521]
[1741444873985,1.17469505,86794.0,86793.0,0.089621]
[1741444874188,1.17469505,86794.0,86793.0,0.320054]
[1741444874423,1.17469505,86794.0,86793.0,0.38114378]
[1741444876825,1.19276694,86794.0,86793.0,0.38114378]
[1741444877441,1.19276694,86794.0,86793.0,0.38414378]
[1741444877649,1.17469505,86794.0,86793.0,0.38414378]
[1741444878454,1.17469505,86794.0,86793.0,0.38814378]
[1741444878896,1.17469505,86794.0,86793.0,0.38414378]
[1741444879733,1.17469505,86794.0,86793.0,0.38514378]
[1741444879933,1.17469505,86794.0,86793.0,0.38814378]
[1741444880356,0.25576938,86794.0,86793.0,0.41014378]
[1741444880562,0.001,86809.0,86808.0,0.134119]
[1741444880787,0.0011156,86809.0,86808.0,0.5084624]
[1741444881004,0.0011156,86809.0,86808.0,0.50731078]
[1741444881212,0.0191826,86809.0,86808.0,1.37741078]
[1741444881422,0.0002,86811.0,86810.0,0.19865985]
[1741444881687,0.0002,86811.0,86810.0,0.24926133]
[1741444881863,0.0002,86811.0,86810.0,0.24810991]
[1741444882080,0.0002,86811.0,86810.0,0.26176784]
[1741444882726,0.0002,86811.0,86810.0,0.23090616]
[1741444882943,0.0002,86811.0,86810.0,0.25396511]
[1741444883341,0.0002,86811.0,86810.0,0.26253158]
[1741444883465,0.0002,86811.0,86810.0,0.22896511]
[1741444883677,0.0002,86811.0,86810.0,0.34352511]
[1741444884265,0.0002,86811.0,86810.0,0.32346616]
[1741444884679,0.0002,86811.0,86810.0,0.56933693]